[Event "*** Titled Tuesday Blitz"]
[Site "Chess.com"]
[Date "2020.11.03"]
[Round "9"]
[White "Nikolakis2014"]
[Black "gmmoranda"]
[Result "1-0"]
[WhiteElo "2769"]
[BlackElo "2875"]
[TimeControl "180+1"]
[EndTime "11:49:50 PST"]
[Termination "Nikolakis2014 won by resignation"]

1. Nf3 {[%clk 0:03:00.9]} 1... Nf6 {[%clk 0:03:00]} 2. c4 {[%clk 0:03:00.4]}
2... e6 {[%clk 0:03:00.2]} 3. g3 {[%clk 0:03:00]} 3... d5 {[%clk 0:03:00.3]} 4.
d4 {[%clk 0:02:59.8]} 4... dxc4 {[%clk 0:02:59.7]} 5. Bg2 {[%clk 0:02:59.7]}
5... a6 {[%clk 0:03:00.2]} 6. O-O {[%clk 0:02:58.8]} 6... b5 {[%clk 0:03:00.2]}
7. Ne5 {[%clk 0:02:57.8]} 7... Nd5 {[%clk 0:03:00.1]} 8. a4 {[%clk 0:02:57.5]}
8... Bb7 {[%clk 0:03:00.3]} 9. axb5 {[%clk 0:02:55.8]} 9... axb5 {[%clk
0:03:01.2]} 10. Rxa8 {[%clk 0:02:55.5]} 10... Bxa8 {[%clk 0:03:02.1]} 11. e4
{[%clk 0:02:55.2]} 11... Nf6 {[%clk 0:03:02.1]} 12. Nc3 {[%clk 0:02:55.1]} 12...
c6 {[%clk 0:03:02.3]} 13. Bh3 {[%clk 0:02:52.2]} 13... Be7 {[%clk 0:02:49.5]}
14. Nxf7 {[%clk 0:02:50.9]} 14... Kxf7 {[%clk 0:02:49.1]} 15. e5 {[%clk
0:02:51]} 15... c5 {[%clk 0:02:20.8]} 16. exf6 {[%clk 0:02:36.4]} 16... Bxf6
{[%clk 0:02:21.7]} 17. Re1 {[%clk 0:02:33.1]} 17... Re8 {[%clk 0:02:08.5]} 18.
Qh5+ {[%clk 0:02:22.7]} 18... Kg8 {[%clk 0:02:08.6]} 19. Rxe6 {[%clk 0:01:51.9]}
19... Rxe6 {[%clk 0:02:07]} 20. Bxe6+ {[%clk 0:01:51]} 20... Kh8 {[%clk
0:02:07.5]} 21. Nxb5 {[%clk 0:01:16.7]} 21... Qe7 {[%clk 0:01:35.2]} 22. d5
{[%clk 0:01:06.4]} 22... Nc6 {[%clk 0:01:21]} 23. Bf4 {[%clk 0:00:35.7]} 23...
g6 {[%clk 0:01:05.8]} 24. Qd1 {[%clk 0:00:19.6]} 24... Ne5 {[%clk 0:00:56.6]}
25. Qa4 {[%clk 0:00:17.5]} 25... Bb7 {[%clk 0:00:51.2]} 26. Nd6 {[%clk
0:00:16.1]} 26... Nf3+ {[%clk 0:00:41.5]} 27. Kg2 {[%clk 0:00:15.3]} 27... Nd4
{[%clk 0:00:31.8]} 28. Nxb7 {[%clk 0:00:12]} 28... Nxe6 {[%clk 0:00:30.3]} 29.
dxe6 {[%clk 0:00:11.4]} 29... Qxb7+ {[%clk 0:00:30.3]} 30. Kh3 {[%clk
0:00:11.4]} 30... g5 {[%clk 0:00:21.3]} 31. Bd6 {[%clk 0:00:10.1]} 31... Kg7
{[%clk 0:00:19.5]} 32. Qe8 {[%clk 0:00:09.5]} 32... Bxb2 {[%clk 0:00:17.8]} 33.
e7 {[%clk 0:00:07]} 33... g4+ {[%clk 0:00:18]} 34. Kxg4 {[%clk 0:00:06.2]} 34...
Qe4+ {[%clk 0:00:17.7]} 35. f4 {[%clk 0:00:05.5]} 35... Qe2+ {[%clk 0:00:17.4]}
36. Kh3 {[%clk 0:00:05.4]} 36... Qf1+ {[%clk 0:00:17.5]} 37. Kg4 {[%clk
0:00:05.4]} 37... Qe2+ {[%clk 0:00:17.3]} 38. Kf5 {[%clk 0:00:04]} 38... Qd3+
{[%clk 0:00:15.6]} 39. Ke6 {[%clk 0:00:04.2]} 39... Qe4+ {[%clk 0:00:14.8]} 40.
Kd7 {[%clk 0:00:03.4]} 40... Qb7+ {[%clk 0:00:14.9]} 41. Ke6 {[%clk 0:00:03.7]}
41... Qe4+ {[%clk 0:00:14.6]} 42. Be5+ {[%clk 0:00:03.9]} 42... Bxe5 {[%clk
0:00:14.3]} 43. fxe5 {[%clk 0:00:04.2]} 43... Qg4+ {[%clk 0:00:13.4]} 44. Kd6
{[%clk 0:00:04.3]} 44... Qd4+ {[%clk 0:00:13.7]} 45. Kc6 {[%clk 0:00:04]} 45...
Qe4+ {[%clk 0:00:14.2]} 46. Kb6 {[%clk 0:00:03.6]} 46... Qb1+ {[%clk 0:00:13.9]}
47. Kc7 {[%clk 0:00:03.1]} 47... Qf5 {[%clk 0:00:12.1]} 48. Qd7 {[%clk
0:00:01.4]} 48... Qxe5+ {[%clk 0:00:12.3]} 49. Kb7 {[%clk 0:00:02]} 49... Qe4+
{[%clk 0:00:12.3]} 50. Kb6 {[%clk 0:00:01.9]} 50... Qb1+ {[%clk 0:00:12.3]} 51.
Kc7 {[%clk 0:00:02.2]} 51... Kf6 {[%clk 0:00:10.5]} 52. e8=Q {[%clk 0:00:02.3]}
1-0

[Event "*** Titled Tuesday Blitz"]
[Site "Chess.com"]
[Date "2020.11.03"]
[Round "9"]
[White "KuzubovYuriy"]
[Black "Borsuk_Konstantin"]
[Result "1-0"]
[WhiteElo "2844"]
[BlackElo "2616"]
[TimeControl "180+1"]
[EndTime "11:49:53 PST"]
[Termination "KuzubovYuriy won by resignation"]

1. d4 {[%clk 0:03:00.9]} 1... Nf6 {[%clk 0:02:02.9]} 2. c4 {[%clk 0:02:59.1]}
2... e6 {[%clk 0:02:02.6]} 3. Nf3 {[%clk 0:02:58.9]} 3... b6 {[%clk 0:02:02.2]}
4. g3 {[%clk 0:02:58.3]} 4... Bb7 {[%clk 0:02:02.8]} 5. Bg2 {[%clk 0:02:58.3]}
5... g6 {[%clk 0:02:03]} 6. Nc3 {[%clk 0:02:57.4]} 6... Bg7 {[%clk 0:02:01.2]}
7. d5 {[%clk 0:02:41.9]} 7... O-O {[%clk 0:01:57.1]} 8. O-O {[%clk 0:02:40.8]}
8... d6 {[%clk 0:01:48.2]} 9. e4 {[%clk 0:02:31.6]} 9... Nfd7 {[%clk 0:01:31.3]}
10. Re1 {[%clk 0:02:26.5]} 10... Bxc3 {[%clk 0:01:24.5]} 11. bxc3 {[%clk
0:02:25.7]} 11... e5 {[%clk 0:01:24.8]} 12. Bh6 {[%clk 0:02:19]} 12... Re8
{[%clk 0:01:24.3]} 13. Ng5 {[%clk 0:02:09.9]} 13... Nc5 {[%clk 0:01:22.8]} 14.
f4 {[%clk 0:01:59.4]} 14... f6 {[%clk 0:00:59.7]} 15. Nh3 {[%clk 0:01:58.6]}
15... Bc8 {[%clk 0:00:56.4]} 16. Nf2 {[%clk 0:01:49.6]} 16... Nbd7 {[%clk
0:00:52.2]} 17. Qf3 {[%clk 0:01:40.3]} 17... Qe7 {[%clk 0:00:47.6]} 18. f5
{[%clk 0:01:29.8]} 18... Nf8 {[%clk 0:00:45.1]} 19. h4 {[%clk 0:01:27.2]} 19...
Ba6 {[%clk 0:00:39.8]} 20. Bf1 {[%clk 0:01:24.4]} 20... Nfd7 {[%clk 0:00:35.8]}
21. g4 {[%clk 0:01:21.9]} 21... Kh8 {[%clk 0:00:35.7]} 22. Kh2 {[%clk
0:01:14.4]} 22... Rg8 {[%clk 0:00:35.6]} 23. Be2 {[%clk 0:01:11.5]} 23... Raf8
{[%clk 0:00:31.1]} 24. Bxf8 {[%clk 0:01:03.7]} 24... Qxf8 {[%clk 0:00:30.1]} 25.
fxg6 {[%clk 0:00:54.2]} 25... hxg6 {[%clk 0:00:29.2]} 26. Qe3 {[%clk 0:00:52.4]}
26... Qg7 {[%clk 0:00:26.3]} 27. Rg1 {[%clk 0:00:51.2]} 27... Qh7 {[%clk
0:00:25.7]} 28. Rg3 {[%clk 0:00:49.3]} 28... Kg7 {[%clk 0:00:25]} 29. Rh3 {[%clk
0:00:46.4]} 29... Rh8 {[%clk 0:00:23.6]} 30. Rg1 {[%clk 0:00:41.4]} 30... Bc8
{[%clk 0:00:21.8]} 31. g5 {[%clk 0:00:25.1]} 31... f5 {[%clk 0:00:21.9]} 32.
exf5 {[%clk 0:00:23]} 32... gxf5 {[%clk 0:00:22.8]} 33. h5 {[%clk 0:00:22.3]}
33... f4 {[%clk 0:00:23.2]} 34. g6 {[%clk 0:00:16.9]} 34... Qh6 {[%clk
0:00:22.1]} 35. Qf3 {[%clk 0:00:13.7]} 35... Nf6 {[%clk 0:00:22.7]} 36. Rh4
{[%clk 0:00:13.5]} 36... Bf5 {[%clk 0:00:22.4]} 37. Bf1 {[%clk 0:00:10]} 37...
Rf8 {[%clk 0:00:21.4]} 38. Bh3 {[%clk 0:00:09.7]} 38... Bxh3 {[%clk 0:00:19.8]}
39. Qxh3 {[%clk 0:00:09.3]} 39... e4 {[%clk 0:00:14.1]} 40. Ng4 {[%clk
0:00:08.4]} 40... Nxg4+ {[%clk 0:00:13.8]} 41. Qxg4 {[%clk 0:00:09.3]} 41... f3
{[%clk 0:00:13.5]} 42. Rf1 {[%clk 0:00:08.1]} 42... Qd2+ {[%clk 0:00:12.1]} 43.
Kh1 {[%clk 0:00:08]} 43... Qh6 {[%clk 0:00:11.5]} 44. Qh3 {[%clk 0:00:06.3]}
44... Rf6 {[%clk 0:00:09]} 45. Rg4 {[%clk 0:00:05.3]} 45... Rf8 {[%clk
0:00:08.7]} 46. Rh4 {[%clk 0:00:04.8]} 46... Qd2 {[%clk 0:00:04.4]} 47. h6+
{[%clk 0:00:04.6]} 47... Kxg6 {[%clk 0:00:04.7]} 48. Rg1+ {[%clk 0:00:04]} 48...
Kf7 {[%clk 0:00:04.2]} 49. h7 {[%clk 0:00:03.9]} 49... Rh8 {[%clk 0:00:04]} 50.
Qf5+ {[%clk 0:00:04]} 50... Ke7 {[%clk 0:00:04.1]} 51. Rg7+ {[%clk 0:00:04.2]}
51... Kd8 {[%clk 0:00:04.5]} 52. Rg8+ {[%clk 0:00:04.7]} 1-0

[Event "*** Titled Tuesday Blitz"]
[Site "Chess.com"]
[Date "2020.11.03"]
[Round "9"]
[White "vova-79"]
[Black "Kotofeyca"]
[Result "1-0"]
[WhiteElo "2498"]
[BlackElo "2369"]
[TimeControl "180+1"]
[EndTime "11:49:54 PST"]
[Termination "vova-79 won by checkmate"]

1. d4 {[%clk 0:03:00.9]} 1... d5 {[%clk 0:02:57.6]} 2. c4 {[%clk 0:02:59.5]}
2... c6 {[%clk 0:02:57.8]} 3. Nc3 {[%clk 0:02:58.3]} 3... Nf6 {[%clk 0:02:58.3]}
4. cxd5 {[%clk 0:02:53.8]} 4... cxd5 {[%clk 0:02:59.2]} 5. f3 {[%clk 0:02:53.9]}
5... Nc6 {[%clk 0:02:59.7]} 6. e4 {[%clk 0:02:52.5]} 6... dxe4 {[%clk
0:02:17.2]} 7. d5 {[%clk 0:02:53.4]} 7... Nb8 {[%clk 0:02:16.9]} 8. fxe4 {[%clk
0:02:51.8]} 8... e6 {[%clk 0:02:14.3]} 9. Bg5 {[%clk 0:02:43]} 9... Be7 {[%clk
0:02:04.5]} 10. Bb5+ {[%clk 0:02:40.4]} 10... Bd7 {[%clk 0:00:57.6]} 11. dxe6
{[%clk 0:01:53.9]} 11... fxe6 {[%clk 0:00:55.5]} 12. Nf3 {[%clk 0:01:15.4]}
12... O-O {[%clk 0:00:54.9]} 13. Bxd7 {[%clk 0:01:09.6]} 13... Qxd7 {[%clk
0:00:50.3]} 14. O-O {[%clk 0:01:08.6]} 14... Nc6 {[%clk 0:00:41.2]} 15. Qxd7
{[%clk 0:00:45.5]} 15... Nxd7 {[%clk 0:00:40.2]} 16. Rad1 {[%clk 0:00:43.5]}
16... Bc5+ {[%clk 0:00:34.6]} 17. Kh1 {[%clk 0:00:42.2]} 17... Nde5 {[%clk
0:00:34.7]} 18. Na4 {[%clk 0:00:34.7]} 18... Nxf3 {[%clk 0:00:29]} 19. gxf3
{[%clk 0:00:33.4]} 19... Be7 {[%clk 0:00:19.6]} 20. Bxe7 {[%clk 0:00:31.9]}
20... Nxe7 {[%clk 0:00:20.5]} 21. Nc5 {[%clk 0:00:29.1]} 21... e5 {[%clk
0:00:17]} 22. Nxb7 {[%clk 0:00:26.2]} 22... Rab8 {[%clk 0:00:16.3]} 23. Rd7
{[%clk 0:00:24.8]} 23... Nc6 {[%clk 0:00:14.9]} 24. Kg2 {[%clk 0:00:18.4]} 24...
Nd4 {[%clk 0:00:14.5]} 25. f4 {[%clk 0:00:16.6]} 25... exf4 {[%clk 0:00:11.3]}
26. b3 {[%clk 0:00:13.3]} 26... f3+ {[%clk 0:00:09.7]} 27. Kf2 {[%clk
0:00:12.6]} 27... Nc2 {[%clk 0:00:07.6]} 28. Nd6 {[%clk 0:00:10.5]} 28... Rbd8
{[%clk 0:00:06.2]} 29. Rxd8 {[%clk 0:00:09.4]} 29... Rxd8 {[%clk 0:00:07.1]} 30.
e5 {[%clk 0:00:09.9]} 30... Nd4 {[%clk 0:00:06.5]} 31. Ke3 {[%clk 0:00:08.9]}
31... Nc6 {[%clk 0:00:06.5]} 32. Ke4 {[%clk 0:00:08.5]} 32... Rd7 {[%clk
0:00:04.8]} 33. Rxf3 {[%clk 0:00:07.5]} 33... Re7 {[%clk 0:00:05.3]} 34. Nc4
{[%clk 0:00:06.6]} 34... g6 {[%clk 0:00:04.6]} 35. Kd5 {[%clk 0:00:06.4]} 35...
Nb4+ {[%clk 0:00:04.1]} 36. Kd6 {[%clk 0:00:06.3]} 36... Re8 {[%clk 0:00:04.1]}
37. e6 {[%clk 0:00:06.3]} 37... a5 {[%clk 0:00:02.7]} 38. Kd7 {[%clk 0:00:05.5]}
38... Ra8 {[%clk 0:00:01.3]} 39. e7 {[%clk 0:00:05]} 39... Ra7+ {[%clk
0:00:02.2]} 40. Kd6 {[%clk 0:00:04.2]} 40... Ra8 {[%clk 0:00:03.1]} 41. Nb6
{[%clk 0:00:03.7]} 41... Rb8 {[%clk 0:00:03.1]} 42. Nd7 {[%clk 0:00:03.3]} 42...
Kg7 {[%clk 0:00:03.7]} 43. Nxb8 {[%clk 0:00:02.7]} 43... Na6 {[%clk 0:00:03.4]}
44. Nxa6 {[%clk 0:00:01.8]} 44... Kh6 {[%clk 0:00:03]} 45. e8=Q {[%clk
0:00:02.7]} 45... g5 {[%clk 0:00:03.8]} 46. Qf8+ {[%clk 0:00:03.2]} 46... Kh5
{[%clk 0:00:03.6]} 47. Rh3+ {[%clk 0:00:02.9]} 47... Kg4 {[%clk 0:00:04.5]} 48.
Rxh7 {[%clk 0:00:03.2]} 48... a4 {[%clk 0:00:05.4]} 49. Rg7 {[%clk 0:00:03]}
49... Kh4 {[%clk 0:00:05.4]} 50. Qf6 {[%clk 0:00:02.2]} 50... Kh3 {[%clk
0:00:06.3]} 51. Qxg5 {[%clk 0:00:02]} 51... a3 {[%clk 0:00:07]} 52. Rh7# {[%clk
0:00:02.1]} 1-0

[Event "*** Titled Tuesday Blitz"]
[Site "Chess.com"]
[Date "2020.11.03"]
[Round "9"]
[White "Chernobay_Artem"]
[Black "MarcoRiehle"]
[Result "1-0"]
[WhiteElo "2631"]
[BlackElo "2688"]
[TimeControl "180+1"]
[EndTime "11:49:56 PST"]
[Termination "Chernobay_Artem won by checkmate"]

1. d4 {[%clk 0:02:59.9]} 1... d5 {[%clk 0:02:59.1]} 2. c4 {[%clk 0:02:59.6]}
2... e6 {[%clk 0:02:59.1]} 3. Nc3 {[%clk 0:02:59.1]} 3... c5 {[%clk 0:02:59.1]}
4. cxd5 {[%clk 0:02:57.5]} 4... cxd4 {[%clk 0:02:57.3]} 5. Qa4+ {[%clk
0:02:52.1]} 5... Bd7 {[%clk 0:02:56.7]} 6. Qxd4 {[%clk 0:02:51.9]} 6... exd5
{[%clk 0:02:57.6]} 7. Qxd5 {[%clk 0:02:43]} 7... Nf6 {[%clk 0:02:57.3]} 8. Qb3
{[%clk 0:02:37.7]} 8... Na6 {[%clk 0:02:52.3]} 9. e3 {[%clk 0:02:28.6]} 9... Nc5
{[%clk 0:02:51.7]} 10. Qc2 {[%clk 0:02:26.5]} 10... Rc8 {[%clk 0:02:50.6]} 11.
Nf3 {[%clk 0:02:21.8]} 11... Bd6 {[%clk 0:02:50.2]} 12. Be2 {[%clk 0:02:21]}
12... O-O {[%clk 0:02:50.5]} 13. O-O {[%clk 0:02:08.7]} 13... Qe7 {[%clk
0:02:45.8]} 14. Rd1 {[%clk 0:01:54.2]} 14... Nce4 {[%clk 0:02:34.1]} 15. Bd2
{[%clk 0:01:54.1]} 15... Rc7 {[%clk 0:02:23.4]} 16. Be1 {[%clk 0:01:52.5]} 16...
Rfc8 {[%clk 0:02:16.4]} 17. Qd3 {[%clk 0:01:52]} 17... Bf5 {[%clk 0:02:10.3]}
18. Nh4 {[%clk 0:01:36.7]} 18... Bd7 {[%clk 0:01:41.3]} 19. Bf3 {[%clk
0:01:20.2]} 19... Bc6 {[%clk 0:01:33.5]} 20. Nf5 {[%clk 0:01:17.1]} 20... Bxh2+
{[%clk 0:01:27.1]} 21. Kxh2 {[%clk 0:01:14.7]} 21... Qe5+ {[%clk 0:01:27.1]} 22.
Ng3 {[%clk 0:01:13.3]} 22... Nxg3 {[%clk 0:01:21]} 23. fxg3 {[%clk 0:01:13]}
23... h6 {[%clk 0:01:15.6]} 24. Qd4 {[%clk 0:01:05.2]} 24... Qg5 {[%clk
0:01:12.5]} 25. g4 {[%clk 0:00:57.2]} 25... Bxf3 {[%clk 0:01:04.9]} 26. gxf3
{[%clk 0:00:55.9]} 26... Rc4 {[%clk 0:01:05.3]} 27. Qd6 {[%clk 0:00:38.3]} 27...
Nxg4+ {[%clk 0:00:59.5]} 28. fxg4 {[%clk 0:00:35.3]} 28... Rxg4 {[%clk
0:01:00.4]} 29. Bg3 {[%clk 0:00:34.8]} 29... Kh7 {[%clk 0:00:38.7]} 30. Rf1
{[%clk 0:00:28.2]} 30... Rc6 {[%clk 0:00:34.1]} 31. Qe5 {[%clk 0:00:22.6]} 31...
Qd8 {[%clk 0:00:19.1]} 32. Qf5+ {[%clk 0:00:20.5]} 32... Rcg6 {[%clk 0:00:18.6]}
33. Rg1 {[%clk 0:00:16.3]} 33... Rg5 {[%clk 0:00:13.3]} 34. Qf3 {[%clk 0:00:14]}
34... Qa5 {[%clk 0:00:11]} 35. Ne4 {[%clk 0:00:10.2]} 35... Rh5+ {[%clk
0:00:10.6]} 36. Kg2 {[%clk 0:00:10.5]} 36... Rb5 {[%clk 0:00:10]} 37. b3 {[%clk
0:00:10.3]} 37... Rd5 {[%clk 0:00:08.1]} 38. Rad1 {[%clk 0:00:09.6]} 38... Qxa2+
{[%clk 0:00:06.5]} 39. Nf2 {[%clk 0:00:09.8]} 39... Rdg5 {[%clk 0:00:05.6]} 40.
Kh2 {[%clk 0:00:07.3]} 40... Qc2 {[%clk 0:00:04.4]} 41. Qe4 {[%clk 0:00:05.6]}
41... Rh5+ {[%clk 0:00:03.7]} 42. Kg2 {[%clk 0:00:05.1]} 42... Qxe4+ {[%clk
0:00:03.8]} 43. Nxe4 {[%clk 0:00:05.2]} 43... Rf5 {[%clk 0:00:04.7]} 44. Rdf1
{[%clk 0:00:04.8]} 44... Rb5 {[%clk 0:00:05.2]} 45. Rxf7 {[%clk 0:00:04.6]}
45... Rxb3 {[%clk 0:00:05.4]} 46. Rgf1 {[%clk 0:00:04.6]} 46... Rxe3 {[%clk
0:00:04.9]} 47. Nf6+ {[%clk 0:00:04.7]} 47... Rxf6 {[%clk 0:00:04.1]} 48. R1xf6
{[%clk 0:00:05.4]} 48... Rb3 {[%clk 0:00:04.4]} 49. Re6 {[%clk 0:00:05.6]} 49...
Rb2+ {[%clk 0:00:04.7]} 50. Bf2 {[%clk 0:00:04.3]} 50... a5 {[%clk 0:00:04.1]}
51. Ree7 {[%clk 0:00:04.9]} 51... Kg6 {[%clk 0:00:04.6]} 52. Rxg7+ {[%clk
0:00:05.2]} 52... Kh5 {[%clk 0:00:05.5]} 53. Kf3 {[%clk 0:00:05.1]} 53... a4
{[%clk 0:00:04.5]} 54. Re5# {[%clk 0:00:05.3]} 1-0

[Event "*** Titled Tuesday Blitz"]
[Site "Chess.com"]
[Date "2020.11.03"]
[Round "9"]
[White "AquivaRubinstein"]
[Black "DenisQ"]
[Result "1/2-1/2"]
[WhiteElo "2547"]
[BlackElo "2650"]
[TimeControl "180+1"]
[EndTime "11:50:04 PST"]
[Termination "Game drawn by repetition"]

1. e4 {[%clk 0:03:00.9]} 1... c6 {[%clk 0:02:58.7]} 2. Nc3 {[%clk 0:02:55.5]}
2... d5 {[%clk 0:02:59.6]} 3. Nf3 {[%clk 0:02:55.2]} 3... Bg4 {[%clk 0:02:58.9]}
4. h3 {[%clk 0:02:54.9]} 4... Bh5 {[%clk 0:02:59.1]} 5. g4 {[%clk 0:02:47.6]}
5... dxe4 {[%clk 0:02:54.6]} 6. gxh5 {[%clk 0:02:37.6]} 6... exf3 {[%clk
0:02:54.5]} 7. Qxf3 {[%clk 0:02:37.6]} 7... Nf6 {[%clk 0:02:54.6]} 8. Bc4 {[%clk
0:02:35]} 8... g6 {[%clk 0:02:53.9]} 9. hxg6 {[%clk 0:02:26.3]} 9... hxg6 {[%clk
0:02:53.4]} 10. d3 {[%clk 0:02:24.7]} 10... Nbd7 {[%clk 0:02:52.3]} 11. Bf4
{[%clk 0:02:15]} 11... Qa5 {[%clk 0:02:50.3]} 12. O-O-O {[%clk 0:02:08.6]} 12...
Bh6 {[%clk 0:02:41.5]} 13. Kb1 {[%clk 0:02:01.3]} 13... Bxf4 {[%clk 0:02:33.7]}
14. Qxf4 {[%clk 0:02:01.2]} 14... Qe5 {[%clk 0:02:27.1]} 15. Qf3 {[%clk
0:01:54.8]} 15... e6 {[%clk 0:02:25.3]} 16. Rhe1 {[%clk 0:01:50.9]} 16... Qf5
{[%clk 0:02:24.4]} 17. Qg3 {[%clk 0:01:43.6]} 17... O-O-O {[%clk 0:02:22.6]} 18.
Re3 {[%clk 0:01:23.5]} 18... Rh5 {[%clk 0:02:10]} 19. Ne4 {[%clk 0:01:13.9]}
19... Nxe4 {[%clk 0:02:08.1]} 20. dxe4 {[%clk 0:01:14.8]} 20... Qc5 {[%clk
0:01:56.8]} 21. Bb3 {[%clk 0:01:14.1]} 21... Rhh8 {[%clk 0:01:54.2]} 22. Red3
{[%clk 0:01:12.5]} 22... Ne5 {[%clk 0:01:51.5]} 23. Rxd8+ {[%clk 0:01:06.1]}
23... Rxd8 {[%clk 0:01:52.4]} 24. Rxd8+ {[%clk 0:01:04.1]} 24... Kxd8 {[%clk
0:01:53.3]} 25. a3 {[%clk 0:01:02.1]} 25... Qd4 {[%clk 0:01:51]} 26. f4 {[%clk
0:00:56.5]} 26... Nd7 {[%clk 0:01:47.3]} 27. e5 {[%clk 0:00:42.3]} 27... Ke8
{[%clk 0:01:26.3]} 28. Qh4 {[%clk 0:00:40]} 28... Qc5 {[%clk 0:01:10.1]} 29. c3
{[%clk 0:00:36.7]} 29... Qe7 {[%clk 0:01:08.7]} 30. Qf2 {[%clk 0:00:35.4]} 30...
Qc5 {[%clk 0:01:06.9]} 31. Qh4 {[%clk 0:00:34.1]} 31... Qe3 {[%clk 0:01:04]} 32.
Qh8+ {[%clk 0:00:26.4]} 32... Ke7 {[%clk 0:01:03.3]} 33. Qh4+ {[%clk 0:00:25.2]}
33... Ke8 {[%clk 0:01:02.3]} 34. Qh8+ {[%clk 0:00:25.1]} 34... Nf8 {[%clk
0:01:02.4]} 35. Qh4 {[%clk 0:00:22.5]} 35... Qe4+ {[%clk 0:00:55.7]} 36. Bc2
{[%clk 0:00:20.8]} 36... Qe2 {[%clk 0:00:51.5]} 37. a4 {[%clk 0:00:18.3]} 37...
a5 {[%clk 0:00:50.3]} 38. Bb3 {[%clk 0:00:14.8]} 38... Qe3 {[%clk 0:00:46]} 39.
Ka2 {[%clk 0:00:13.6]} 39... Qe4 {[%clk 0:00:44.5]} 40. Qf6 {[%clk 0:00:12.2]}
40... Qf5 {[%clk 0:00:43.4]} 41. Qh4 {[%clk 0:00:11]} 41... Qe4 {[%clk 0:00:41]}
42. Qf2 {[%clk 0:00:10.5]} 42... Nd7 {[%clk 0:00:40.3]} 43. Qa7 {[%clk 0:00:10]}
43... Qxf4 {[%clk 0:00:39.3]} 44. Qxb7 {[%clk 0:00:09.2]} 44... Qxe5 {[%clk
0:00:34.4]} 45. Qxc6 {[%clk 0:00:07.9]} 45... Ke7 {[%clk 0:00:34.7]} 46. Bc4
{[%clk 0:00:06.5]} 46... Qe3 {[%clk 0:00:22.7]} 47. Qa6 {[%clk 0:00:05.1]} 47...
Qb6 {[%clk 0:00:16.6]} 48. Qc8 {[%clk 0:00:04.2]} 48... Qc5 {[%clk 0:00:15.4]}
49. Qa6 {[%clk 0:00:03.6]} 49... g5 {[%clk 0:00:13.3]} 50. Bb5 {[%clk
0:00:03.5]} 50... Ne5 {[%clk 0:00:11.2]} 51. Qb7+ {[%clk 0:00:03.5]} 51... Kf6
{[%clk 0:00:11]} 52. Qe4 {[%clk 0:00:04.1]} 52... Ke7 {[%clk 0:00:09.7]} 53. h4
{[%clk 0:00:04.3]} 53... g4 {[%clk 0:00:09.2]} 54. Qf4 {[%clk 0:00:04.3]} 54...
f6 {[%clk 0:00:06.6]} 55. Qh6 {[%clk 0:00:04.3]} 55... Qd5+ {[%clk 0:00:06.6]}
56. Ka3 {[%clk 0:00:02.5]} 56... Qc5+ {[%clk 0:00:06.6]} 57. Ka2 {[%clk
0:00:02.7]} 57... Qd5+ {[%clk 0:00:07]} 58. Ka3 {[%clk 0:00:03]} 58... Qc5+
{[%clk 0:00:07.2]} 59. Ka2 {[%clk 0:00:03.3]} 1/2-1/2

[Event "*** Titled Tuesday Blitz"]
[Site "Chess.com"]
[Date "2020.11.03"]
[Round "9"]
[White "rasmussvane"]
[Black "Nuvas"]
[Result "1-0"]
[WhiteElo "2921"]
[BlackElo "2331"]
[TimeControl "180+1"]
[EndTime "11:50:07 PST"]
[Termination "rasmussvane won by resignation"]

1. Nf3 {[%clk 0:03:00.9]} 1... d5 {[%clk 0:02:59.4]} 2. g3 {[%clk 0:03:01.3]}
2... Nf6 {[%clk 0:02:59.1]} 3. Bg2 {[%clk 0:03:01.7]} 3... e6 {[%clk 0:02:59.7]}
4. O-O {[%clk 0:03:02]} 4... Be7 {[%clk 0:03:00.2]} 5. c4 {[%clk 0:03:02.2]}
5... O-O {[%clk 0:02:59.5]} 6. b3 {[%clk 0:03:02.6]} 6... c5 {[%clk 0:02:59]} 7.
cxd5 {[%clk 0:03:02.9]} 7... Nxd5 {[%clk 0:02:57.9]} 8. Nc3 {[%clk 0:03:03.2]}
8... Nc6 {[%clk 0:02:54.5]} 9. Bb2 {[%clk 0:03:03.1]} 9... Bf6 {[%clk 0:02:52]}
10. Qc2 {[%clk 0:03:03.2]} 10... b6 {[%clk 0:02:48.4]} 11. Nxd5 {[%clk
0:03:02.9]} 11... exd5 {[%clk 0:02:47.8]} 12. d4 {[%clk 0:03:01.7]} 12... Re8
{[%clk 0:02:16]} 13. dxc5 {[%clk 0:02:53]} 13... Bxb2 {[%clk 0:02:15.6]} 14.
Qxb2 {[%clk 0:02:53.9]} 14... bxc5 {[%clk 0:02:12]} 15. Rfc1 {[%clk 0:02:44]}
15... Qd6 {[%clk 0:01:47.9]} 16. Qc2 {[%clk 0:02:14.6]} 16... Nb4 {[%clk
0:01:41]} 17. Qxc5 {[%clk 0:02:05.4]} 17... Qxc5 {[%clk 0:01:41]} 18. Rxc5
{[%clk 0:02:06.3]} 18... Rxe2 {[%clk 0:01:40.6]} 19. a3 {[%clk 0:02:06.6]} 19...
Nc2 {[%clk 0:00:46.1]} 20. Rc1 {[%clk 0:01:54.4]} 20... Bf5 {[%clk 0:00:45.8]}
21. Nh4 {[%clk 0:01:10.2]} 21... Rc8 {[%clk 0:00:45.2]} 22. Rxc8+ {[%clk
0:00:37.7]} 22... Bxc8 {[%clk 0:00:44.7]} 23. Bf1 {[%clk 0:00:38.3]} 23... Re1
{[%clk 0:00:44.7]} 24. Rxc2 {[%clk 0:00:38]} 24... Ba6 {[%clk 0:00:44.7]} 25.
Nf3 {[%clk 0:00:19.5]} 25... Rxf1+ {[%clk 0:00:44.1]} 26. Kg2 {[%clk 0:00:19.8]}
26... Ra1 {[%clk 0:00:41.9]} 27. Nd4 {[%clk 0:00:18]} 27... g6 {[%clk
0:00:16.9]} 28. a4 {[%clk 0:00:17]} 28... Rd1 {[%clk 0:00:16.1]} 29. Nc6 {[%clk
0:00:14.6]} 29... Bf1+ {[%clk 0:00:14.2]} 30. Kf3 {[%clk 0:00:13.8]} 30... Bd3
{[%clk 0:00:14.8]} 31. Rc5 {[%clk 0:00:09.3]} 31... Be4+ {[%clk 0:00:14.8]} 32.
Kf4 {[%clk 0:00:09.4]} 32... a6 {[%clk 0:00:13.5]} 33. Ne5 {[%clk 0:00:08.1]}
33... f6 {[%clk 0:00:11.4]} 34. Rc8+ {[%clk 0:00:06.9]} 34... Kg7 {[%clk
0:00:10.8]} 35. Rc7+ {[%clk 0:00:07.5]} 35... Kg8 {[%clk 0:00:09.7]} 36. Ng4
{[%clk 0:00:03.5]} 36... g5+ {[%clk 0:00:06.2]} 37. Ke3 {[%clk 0:00:04]} 37...
Rd3+ {[%clk 0:00:06.7]} 38. Ke2 {[%clk 0:00:04.5]} 38... Rxb3 {[%clk 0:00:07.1]}
39. Nxf6+ {[%clk 0:00:05]} 39... Kf8 {[%clk 0:00:07.7]} 40. Nxh7+ {[%clk
0:00:04.5]} 40... Bxh7 {[%clk 0:00:07.6]} 41. Rxh7 {[%clk 0:00:05.4]} 41... Rb4
{[%clk 0:00:07.8]} 42. Rd7 {[%clk 0:00:05.3]} 42... Rxa4 {[%clk 0:00:07.5]} 43.
Rxd5 {[%clk 0:00:05.6]} 43... g4 {[%clk 0:00:08.4]} 44. Ke3 {[%clk 0:00:05.3]}
44... Kf7 {[%clk 0:00:08.6]} 45. Rd6 {[%clk 0:00:05.4]} 45... Ke7 {[%clk
0:00:08.4]} 46. Rb6 {[%clk 0:00:05.8]} 46... Kf7 {[%clk 0:00:07.8]} 47. Rc6
{[%clk 0:00:05.5]} 47... Ke7 {[%clk 0:00:08.2]} 48. Rh6 {[%clk 0:00:05.8]} 48...
Kf7 {[%clk 0:00:08.6]} 49. h4 {[%clk 0:00:06]} 49... gxh3 {[%clk 0:00:08.4]} 50.
Rxh3 {[%clk 0:00:06.1]} 50... Ra3+ {[%clk 0:00:09.3]} 51. Kf4 {[%clk 0:00:06.2]}
51... Ra4+ {[%clk 0:00:09.7]} 52. Kg5 {[%clk 0:00:06.7]} 52... Ra5+ {[%clk
0:00:10]} 53. Kg4 {[%clk 0:00:07.1]} 53... Rb5 {[%clk 0:00:09.4]} 54. Rh7+
{[%clk 0:00:06.8]} 54... Kg6 {[%clk 0:00:09.2]} 55. Ra7 {[%clk 0:00:07.7]} 55...
Rb6 {[%clk 0:00:09.6]} 56. f4 {[%clk 0:00:07.8]} 56... Rc6 {[%clk 0:00:10]} 57.
Rd7 {[%clk 0:00:06.1]} 57... Kf6 {[%clk 0:00:08.1]} 58. Rd5 {[%clk 0:00:05.7]}
58... Rb6 {[%clk 0:00:07]} 59. Rc5 {[%clk 0:00:05.7]} 59... Rc6 {[%clk
0:00:07.7]} 60. Rxc6+ {[%clk 0:00:06]} 1-0